Workbook

Sheet Ballast
G1: Document #: | H1: 4095-GBPSH
G2: Rev: | H2: DRAFT C
G3: Date: | H3: 2012-07-20
G4: ECO #: | H4: 574
A7: Ballasting The Slocum Glider (Spreadsheet) | E7: Reference Ballasting Procedure 4095-GBP
A9: 1- Enter tank water temperature and either density, salinity, or conductivity
A10: 2- Enter target water temperature and either density, salinity, or conductivity
A11: 3- Adjust weight by amount in yellow box to go from neutrally buoyant in tank to neutrally buoyant in target water
A12: 4- If you want to change anything, the password to unprotect the sheet is "glider"
A14: Glider Name: | C14: 275
A15: Ballasted by:
A16: Date: | C16: 2012-07-31
A17: Glider Type: | C17: G2 Shallow (200m)
A18: Add-ons (check box for each bay) | B18: G1 Shallow Science Bay (10")
B19: G1 Deep/G2 Science Bay (10")
B20: G2 Energy Bay (14.85")
B21: G2 DVL Bay (5.75")
A22: Base Glider Displacement: | C22: =IF(C17="G1 Shallow (200m)",42.973,IF(C17="G1 Deep (1000m)",45.413,IF(C17="G2 Shallow (200m)",46.513,IF(C17="G2 Deep (1000m)",46.513,)))) -> 46.513 | D22: Liters
A23: Total Glider Displacement: | C23: =C22+SUMIF(Constants!F12:F19,"TRUE",Constants!E12:E19) -> 56.29954273 | D23: Liters
C25: Tank Water | E25: Target Water | G25: Weight Change
A26: Temperature and | C26: 29.8 | D26: oC | E26: 24 | F26: oC | G26: =C23*53.5*10^-6*(E26-C26)*E32 -> -17.83653988 | H26: grams | I26: =IF(OR(C26<-5,C26>50),"Tank water temp out of range. Allowable value between -5 and 50 degrees c",IF(OR(E26<-5,E26>50),"Target water temp out of range, allowable value between -5 and 50 degrees c","")) -> 
A27: (Density or | C27: 0 | D27: g/LoC | E27: 0 | F27: g/LoC | I27: =IF(AND(OR(C27=0,ABS(C27-1000)<100),OR(E27=0,ABS(E27-1000)<100)),"","Either tank or target density out of range. Allowable values are 0 g/L or between 900 and 1100 g/L") -> 
A28: Conductivity or | D28: s/m | E28: 0 | F28: s/m | I28: =IF(OR(C28<0,C28>10),"Tank water conductivity out of range",IF(OR(E28<0,E28>10),"Target water conductivity out of range","")) -> 
A29: Salinity) | C29: 28.6 | D29: pss | E29: 31.5 | F29: pss | I29: =IF(OR(C29<0,C29>100),"Tank water salinity out of range",IF(OR(E29<0,E29>100),"Target water salinity out of range","")) -> 
A31: Calculated/given Salinity | C31: =IF(C28,((0.008+((C26-15)/(1+0.0162*(C26-15)))*0.0005)+(SQRT(C28/(4.2914*(0.6766097+C26*(0.0200564+C26*(0.0001104259+C26*(-0.00000069698+C26*0.0000000010031)))))))*((-0.1692+((C26-15)/(1+0.0162*(C26-15)))*-0.0056)+(SQRT(C28/(4.2914*(0.6766097+C26*(0.0200564+C26*(0.0001104259+C26*(-0.00000069698+C26*0.0000000010031)))))))*((25.3851+((C26-15)/(1+0.0162*(C26-15)))*-0.0066)+(SQRT(C28/(4.2914*(0.6766097+C26*(0.0200564+C26*(0.0001104259+C26*(-0.00000069698+C26*0.0000000010031)))))))*((14.0941+((C26-15)/(1+0.0162*(C26-15)))*-0.0375)+(SQRT(C28/(4.2914*(0.6766097+C26*(0.0200564+C26*(0.0001104259+C26*(-0.00000069698+C26*0.0000000010031)))))))*((-7.0261+((C26-15)/(1+0.0162*(C26-15)))*0.0636)+(SQRT(C28/(4.2914*(0.6766097+C26*(0.0200564+C26*(0.0001104259+C26*(-0.00000069698+C26*0.0000000010031)))))))*((2.7081+((C26-15)/(1+0.0162*(C26-15)))*-0.0144))))))),C29) -> 28.6 | D31: pss | E31: =IF(E28,((0.008+((E26-15)/(1+0.0162*(E26-15)))*0.0005)+(SQRT(E28/(4.2914*(0.6766097+E26*(0.0200564+E26*(0.0001104259+E26*(-0.00000069698+E26*0.0000000010031)))))))*((-0.1692+((E26-15)/(1+0.0162*(E26-15)))*-0.0056)+(SQRT(E28/(4.2914*(0.6766097+E26*(0.0200564+E26*(0.0001104259+E26*(-0.00000069698+E26*0.0000000010031)))))))*((25.3851+((E26-15)/(1+0.0162*(E26-15)))*-0.0066)+(SQRT(E28/(4.2914*(0.6766097+E26*(0.0200564+E26*(0.0001104259+E26*(-0.00000069698+E26*0.0000000010031)))))))*((14.0941+((E26-15)/(1+0.0162*(E26-15)))*-0.0375)+(SQRT(E28/(4.2914*(0.6766097+E26*(0.0200564+E26*(0.0001104259+E26*(-0.00000069698+E26*0.0000000010031)))))))*((-7.0261+((E26-15)/(1+0.0162*(E26-15)))*0.0636)+(SQRT(E28/(4.2914*(0.6766097+E26*(0.0200564+E26*(0.0001104259+E26*(-0.00000069698+E26*0.0000000010031)))))))*((2.7081+((E26-15)/(1+0.0162*(E26-15)))*-0.0144))))))),E29) -> 31.5 | F31: pss
A32: Calculated/given Density | C32: =IF(C27,C27,(999.842594+C26*(6.793952*10^-2+C26*(-9.09529*10^-3+C26*(1.001685*10^-4+C26*(-1.120083*10^-6+C26*6.536332*10^-9)))))+C31*((0.824493+C26*(-4.0899*10^-3+C26*(7.6438*10^-5+C26*(-8.2467*10^-7+C26*5.3875*10^-9))))+(-5.72466*10^-3+C26*(1.0227*10^-4-C26*1.6546*10^-6))*SQRT(C31)+4.8314*10^-4*C31)) -> 1017.005807 | D32: g/LoC | E32: =IF(E27,E27,(999.842594+E26*(6.793952*10^-2+E26*(-9.09529*10^-3+E26*(1.001685*10^-4+E26*(-1.120083*10^-6+E26*6.536332*10^-9)))))+E31*((0.824493+E26*(-4.0899*10^-3+E26*(7.6438*10^-5+E26*(-8.2467*10^-7+E26*5.3875*10^-9))))+(-5.72466*10^-3+E26*(1.0227*10^-4-E26*1.6546*10^-6))*SQRT(E31)+4.8314*10^-4*E31)) -> 1020.995825 | F32: g/LoC | G32: =(E32-C32)*C23 -> 224.6361514 | H32: grams | I32: =IF(OR(C32<900,C32>1100),"Density of tank water out of range",IF(OR(E32<900,E32>1100),"Density of target water out of range","")) -> 
E33: Total Weight Adjustment: | G33: =SUM(G26:G32) -> 206.7996115 | H33: grams | I33: =IF(AND(I26="",I32="",E22=""),"","One or more parameters above need to be adjusted") -> 
A34: Drive Weight Material
A35: Drive Weight (g) | C35: =IF(C34="Lead",ABS(G33/0.912/2),IF(C34="Stainless Steel",ABS(G33/0.875/2),"")) -> 
A37: Battery Type: | D37: weight (kg)
A38: Pitch Configuration | C38: =IF(C37="Lithium","Lithium Pitch Pack",IF(C37="Alkaline","Alkaline Pitch Pack","")) -> 
A39: Aft Configuration
A40: Nose Configuration
A43: Calculating H-moment (Roll Method)
A45: 1- Place well-ballasted glider in tank with wings.
A46: 2- Add a known amount of weight (~300 g) on one wing rail
A47: 3- Attach a spring scale to the glider on the opposite wing rail
A48: 4- Measure the weight change shown on the spring scale
A49: 5- Measure the angle of roll that the glider undergoes due to the addition of weight. For this step you can use an inclinometer (less accurate) or have the glider on and measure compass roll before and after weight addition and measure angle difference.
A52: 6- Remove the added weight, measure weight, and multiply by 0.912 if using Lead weight or by 0.875 if the weight used is stainless steel. This factor accounts for buoyancy provided by water on material.
A55: Roll Start | C55: 0 | D55: radians | E55: =IF(ABS(C55<1.25),"","Error: starting roll too high. Re-check.") -> 
A56: Roll End | C56: 0 | D56: radians | E56: =IF(ABS(C56<1.25),"","Error: ending roll too high. Re-check.") -> 
A58: Weight on Spring | C58: 0 | D58: grams | E58: =IF(C58<0,"Error: Weight should be positive",IF(C58>2000,"Error, weight seems to be too high.","")) -> 
A59: Weight added on wing rail | C59: 0 | D59: grams | E59: =IF(C59<0,"Error: Weight should be positive",IF(C59>2000,"Error, weight seems to be too high.","")) -> 
A60: Angle of Rotation | C60: =(C56-C55)/(PI()/180) -> 0 | D60: degrees
A61: Radius of Hull + Distance to Weight | C61: 107 | D61: mm | E61: =IF(C61<107,"Error: distance should be greater than radius of hull",IF(C61>600,"Error: distance too high.","")) -> 
A62: (radius of hull: 200m=107, 1000m=110)
A64: H-distance | C64: =((C58+C59)*C61)/(C23*1000*TAN(C60*(PI()/180))) ->  | D64: mm
A66: Weight of Pitch Battery | C66: =D38 -> 0 | D66: kg | E66: =IF(C66<4,"Error: weight of pitch battery too low. Re-check",IF(C66>12,"Error: weight of pitch battery too high. Re-check.","")) -> Error: weight of pitch battery too low. Re-check
A67: Total range of Pitch Battery (+/- in) | C67: 1 | D67: inches | E67: =IF(C67=1,"","Error: range of pitch battery is usually +/- 1 inch") -> 
A68: Pitch Range | C68: =DEGREES(ATAN((C66*25.4*C67/C22)/C64)) ->  | D68: Degrees
A70: Calculating H-moment (Pitch Battery method)
A72: 1- Put battery position (c_battpos) at about .25, ensure front of glider is not touching bottom of tank- adjust as necessary
A73: 2- Record m_pitch and m_battpos
A74: 3- Put battery position at 0
A75: 4- Record m_pitch and m_battpos
A77: Weight of Pitch Battery | C77: =D38 -> 0 | D77: kg | E77: =IF(C77<4,"Error: weight of pitch battery too low. Re-check",IF(C77>12,"Error: weight of pitch battery too high. Re-check.","")) -> Error: weight of pitch battery too low. Re-check
A78: Pitch_1 | C78: 0 | D78: radians | E78: =IF(ABS(C78<1.25),"","Error: starting pitch too high. Re-check.") -> 
A79: Battery Position_1 | C79: 0 | D79: inches | E79: =IF(ABS(C79)>1.1,"Error, battery position out of range","") -> 
A80: Pitch_2 | C80: 0 | D80: radians | E80: =IF(ABS(C80<1.25),"","Error: starting pitch too high. Re-check.") -> 
A81: Battery Position_2 | C81: 0 | D81: inches | E81: =IF(ABS(C81)>1.1,"Error, battery position out of range","") -> 
A83: H-Distance | C83: =ABS(1000*25.4*(C79-C81)*(C77+0.1)/(C23*C32*TAN(C78-C80))) ->  | D83: mm
A85: Total range of Pitch Battery (+/- in) | C85: 1 | D85: inches | E85: =IF(C85=1,"","Error: range of pitch battery is usually +/- 1 inch") -> 
A86: Pitch Range | C86: =DEGREES(ATAN((C85*25.4*C77/C22)/C83)) ->  | D86: Degrees
D88: Sign: | F88: Date:

Sheet G1 Shallow
D1: Document #: | E1: =Ballast!$H$1 -> 4095-GBPSH
D2: Rev: | E2: =Ballast!$H$2 -> DRAFT C
D3: Date: | E3: =Ballast!$H$3 -> 2012-07-20
D4: ECO #: | E4: =Ballast!$H$4 -> 574
A7: Glider: | B7: =Ballast!C14 -> 275
A8: Date: | B8: =Ballast!C16 -> 2012-07-31
A10: Scale readings and setup:
B11: Fwd Scale reading: | C11: 0 | D11: grams | E11: =IF(C11>5000,"Error: scale reading too high",IF(C11<0,"Error: scale reading should be positive","")) -> 
B12: Aft Scale reading: | C12: 0 | D12: grams | E12: =IF(C12>5000,"Error: scale reading too high",IF(C12<0,"Error: scale reading should be positive","")) -> 
B13: Adjustment from ballasting sheet: | C13: =Ballast!G33 -> 206.7996115 | D13: grams
B14: =IF((C11+C12-C13)>0,"Total weight to remove:","Total weight to add:") -> Total weight to add: | C14: =ABS(C11+C12-C13) -> 206.7996115 | D14: grams
B16: From fwd hull | C16: From center of buoyancy
B17: (inches) | C17: (inches)
A18: Fwd scale position | B18: 1 | C18: =B18-$C$24 -> -21.7 | E18: =IF(B18<-10,"Error: Check scale position",IF(B18>30, "Error, check scale position","")) -> 
A19: Aft scale position | B19: 47 | C19: =B19-$C$24 -> 24.3 | E19: =IF(B19<20,"Error: Check scale position",IF(B19>70, "Error, check scale position","")) -> 
B21: Off from center of buoyancy by this much: | C21: =(C11*C18)+(C12*C19) -> 0 | D21: inchgrams
F22: Notes:
A23: Coordinate Setup: | F23: Red numbers indicate measured constants that will affect results.
B24: Center of Buoyancy: | C24: 22.7 | F24: The reference point everything is measured from is the forward edge of the forward hull.
F25: Coordinates of forward top and bottom bottles was measured with heavy end of bottle forward
A26: Weight Position | B26: Dist from fwd hull | C26: From CoB | F26: Depending on which hole is used to bolt weight to the weight bar, coordinates of sci fwd disc
B27: (inches) | C27: (inches) | F27: and sci aft disc will need to be adjusted.
A28: Forward top | B28: 2 | C28: =B28-C$24 -> -20.7
A29: Forward bottom | B29: 3.5 | C29: -19.2
A30: Sci fwd bottles | B30: 20.125 | C30: -2.575
A31: Sci fwd disc | B31: 22 | C31: -0.7
A32: Center | B32: =C24 -> 22.7 | C32: 0
A33: Sci aft disc | B33: 26 | C33: 3.3
A34: Sci aft bottles | B34: =27+15/16 -> 27.9375 | C34: 5.2375
A35: Aft | B35: 46.875 | C35: 24.175
A37: Weight adjustment section:
A39: Zero if spot unavailable | B39: Position: | C39: Weight adjustment | D39: Center of Mass adjustment | E39: Final
A40: One if spot available | C40: (grams) | D40: (inchgrams) | E40: Weight
A41: 1 | B41: =A28 -> Forward top | C41: 0 | D41: =C28*C41 -> 0 | F41: =IF(ABS(C41)>5000,"Error: Weight adjustment too high","") -> 
A42: 0 | B42: Forward bottom | C42: 0 | D42: 0
A43: 0 | B43: Sci fwd bottles | C43: 0 | D43: 0
A44: 0 | B44: Sci fwd disc | C44: 0 | D44: 0
A45: 0 | B45: Center | C45: 0 | D45: 0
A46: 0 | B46: Sci aft disc | C46: 0 | D46: 0
A47: 0 | B47: Sci aft bottles | C47: 0 | D47: 0
A48: 1 | B48: Aft | C48: 0 | D48: 0
C49: =SUM(C41:C48) -> 0 | D49: =SUM(D41:D48) -> 0
A51: Weight adjustment calculation:
B52: =ABS((C11+C12-C13)+C49) -> 206.7996115 | C52: =IF(((C11+C12-C13)+C49)>=0,"additional grams need to be removed", "additional grams need to be added") -> additional grams need to be added
B53: =ABS((C21+D49)/(B64-B63)) -> 0 | C53: =CONCATENATE("Grams need to move from ",IF((C21+D49)<=0,INDEX(A28:A35,B60,1),INDEX(A28:A35,B61,1))," to ",IF((C21+D49)<=0,INDEX(A28:A35,B61,1),INDEX(A28:A35,B60,1))) -> Grams need to move from Forward top to Aft
B54: =INDEX(C41:C48,IF(A41,1,IF(A42,2,IF(A43,3,IF(A44,4,IF(A45,5,IF(A46,6,IF(A47,7,"Error"))))))))+(C21+D49)/(INDEX(C28:C35,IF(A48,8,IF(A47,7,IF(A46,6,IF(A45,5,IF(A44,4,IF(A43,3,IF(A42,2,"error"))))))))-INDEX(C28:C35,IF(A41,1,IF(A42,2,IF(A43,3,IF(A44,4,IF(A45,5,IF(A46,6,IF(A47,7,"Error"))))))))) -> 0 | C54: =CONCATENATE("Change ",INDEX(A28:A35,B60,1)," to this:") -> Change Forward top to this: | F54: <-- when this change is made, the number below will be affected. It is necessary
B55: =INDEX(C41:C48,IF(A48,8,IF(A47,7,IF(A46,6,IF(A45,5,IF(A44,4,IF(A43,3,IF(A42,2,"error"))))))))-((C21+D49)/(INDEX(C28:C35,IF(A48,8,IF(A47,7,IF(A46,6,IF(A45,5,IF(A44,4,IF(A43,3,IF(A42,2,"error"))))))))-INDEX(C28:C35,IF(A41,1,IF(A42,2,IF(A43,3,IF(A44,4,IF(A45,5,IF(A46,6,IF(A47,7,"Error")))))))))) -> 0 | C55: =CONCATENATE("Change ",INDEX(A28:A35,B61,1)," to this:") -> Change Aft to this: | F55: to record both numbers so they can both be changed to the correct value.
A59: Temporary stuff that is needed because excel limits me to 7 nested functions:
B60: =IF(A41,1,IF(A42,2,IF(A43,3,IF(A44,4,IF(A45,5,IF(A46,6,IF(A47,7,"Error"))))))) -> 1 | C60: row of first spot
B61: =IF(A48,8,IF(A47,7,IF(A46,6,IF(A45,5,IF(A44,4,IF(A43,3,IF(A42,2,"error"))))))) -> 8 | C61: row of second spot
B63: =INDEX(C28:C35,IF(A41,1,IF(A42,2,IF(A43,3,IF(A44,4,IF(A45,5,IF(A46,6,IF(A47,7,"Error")))))))) -> -20.7 | C63: pos of first spot
B64: =INDEX(C28:C35,IF(A48,8,IF(A47,7,IF(A46,6,IF(A45,5,IF(A44,4,IF(A43,3,IF(A42,2,"error")))))))) -> 24.175 | C64: pos of second spot
A66: Instructions:
A67: 1- Put glider in tank and attach scales, recording the point of attachment in scale setup section.
A68: 2- Record readings on scales in cells C5 and C6. If glider is light, temporarily add an external known weight to the centerpoint of the glider. If weight is temporarily added, enter the removal of the weight as an adjustment in cell C39. (If the weight in water of the weight is 500g, removing this weight will be a -500g adjustment, so enter -500 in cell C39)
A69: 3- Looking at cell B46, the necessary weight adjustment to the glider, decide which positions you will be able to add/remove weight from, and enter weight adjustments in cells C35-C42 until no more weight needs to be added or subtracted. Use judgement to determine where to add/subtract weight from. If the front of the glider is heavy, you want to remove weight from the front of the glider.
A70: 4- Only after cell B46 reads zero (no more weight adjustments are needed), determine the exact distribution of weight by putting a "1" in each cell, A35-A42, where the corresponding position in cell B35-B42 is available. For example, if weight needs to be moved forward but the forward bottles are full, enter a "0". If they have room to add weight, enter a "1".
A71: 5- In doing the weight adjustment calculation, the spreadsheet will select the furthest forward and furthest aft positions that are "available" (as indicated in column A), and calculate how much weight needs to be moved between these two positions, which can be seen in cell B47. If the value shown is greater than the amount that can physically be moved, that's okay, change the weight adjustment cells to reflect the amount of weight you can actually move, and change the 1 to a 0 to reflect that the spot is no longer available. For example, if the spreadsheet tells you to move 1500g from sci fwd to sci aft, but you only have 500g in sci fwd, reduce the sci fwd weight adjustment by 500g, increase the sci aft weight adjustment by 500g, and change the 1 to a 0 in the cell corresponding to sci fwd availibility.
A72: 6- Repeat step 5 until no more weight needs to move within the glider (cell B47 will be zero). As you repeat step 5 and change the weight adjustment numbers, you need to ensure that the TOTAL weight adjustment remains at the appropriate value.
A73: 7- Remove glider from tank and make weight adjustments. Put glider back in tank. Clear weight adjustment cells and scale reading cells. Repeat step 2 and check ballasting.
A75: If you want to change anything, the password to unprotect the sheet is "glider"

Sheet G1 Deep
D1: Document #: | E1: =Ballast!$H$1 -> 4095-GBPSH
D2: Rev: | E2: =Ballast!$H$2 -> DRAFT C
D3: Date: | E3: =Ballast!$H$3 -> 2012-07-20
D4: ECO #: | E4: =Ballast!$H$4 -> 574
A7: Glider: | B7: =Ballast!C14 -> 275
A8: Date: | B8: =Ballast!C16 -> 2012-07-31
A10: Scale readings and setup:
B11: Fwd Scale reading: | C11: 0 | D11: grams | E11: =IF(C11>5000,"Error: scale reading too high",IF(C11<0,"Error: scale reading should be positive","")) -> 
B12: Aft Scale reading: | C12: 0 | D12: grams | E12: =IF(C12>5000,"Error: scale reading too high",IF(C12<0,"Error: scale reading should be positive","")) -> 
B13: Adjustment from ballasting sheet: | C13: =Ballast!G33 -> 206.7996115 | D13: grams
B14: =IF((C11+C12-C13)>0,"Total weight to remove:","Total weight to add:") -> Total weight to add: | C14: =ABS(C11+C12-C13) -> 206.7996115 | D14: grams
B16: From fwd hull | C16: From center of buoyancy
B17: (inches) | C17: (inches)
A18: Fwd scale position | B18: 1 | C18: =B18-$C$24 -> -22 | E18: =IF(B18<-10,"Error: Check scale position",IF(B18>30, "Error, check scale position","")) -> 
A19: Aft scale position | B19: 47.5 | C19: =B19-$C$24 -> 24.5 | E19: =IF(B19<20,"Error: Check scale position",IF(B19>70, "Error, check scale position","")) -> 
B21: Off from center of buoyancy by this much: | C21: =(C11*C18)+(C12*C19) -> 0 | D21: inchgrams
F22: Notes:
A23: Coordinate Setup: | F23: Red numbers indicate measured constants that will affect results.
B24: Center of Buoyancy: | C24: 23 | F24: The reference point everything is measured from is the forward edge of the forward hull.
F25: Coordinates of forward top and bottom bottles was measured with heavy end of bottle forward
A26: Weight Position | B26: Dist from fwd hull | C26: From CoB | F26: Depending on which hole is used to bolt weight to the weight bar, coordinates of sci fwd disc
B27: (inches) | C27: (inches) | F27: and sci aft disc will need to be adjusted.
A28: Forward | B28: 2 | C28: =B28-C$24 -> -21
A29: unused | B29: 9999 | C29: 9976
A30: Sci fwd bottles | B30: 20.375 | C30: -2.625
A31: Sci fwd disc | B31: 22.125 | C31: -0.875
A32: Center | B32: 23 | C32: 0
A33: Sci aft disc | B33: 26.5 | C33: 3.5
A34: Sci aft bottles | B34: 28.375 | C34: 5.375
A35: Aft | B35: 47.5 | C35: 24.5
A37: Weight adjustment section:
A39: Zero if spot unavailable | B39: Position: | C39: Weight adjustment | D39: Center of Mass adjustment | E39: Final
A40: One if spot available | C40: (grams) | D40: (inchgrams) | E40: Weight
A41: 0 | B41: =A28 -> Forward | C41: 0 | D41: =C28*C41 -> 0 | F41: =IF(ABS(C41)>5000,"Error: Weight adjustment too high","") -> 
A42: 0 | B42: unused | C42: 0 | D42: 0
A43: 1 | B43: Sci fwd bottles | C43: 0 | D43: 0
A44: 1 | B44: Sci fwd disc | C44: 0 | D44: 0
A45: 1 | B45: Center | C45: 0 | D45: 0
A46: 1 | B46: Sci aft disc | C46: 0 | D46: 0
A47: 1 | B47: Sci aft bottles | C47: 0 | D47: 0
A48: 1 | B48: Aft | C48: 0 | D48: 0
C49: =SUM(C41:C48) -> 0 | D49: =SUM(D41:D48) -> 0
A51: Weight adjustment calculation:
B52: =ABS((C11+C12-C13)+C49) -> 206.7996115 | C52: =IF(((C11+C12-C13)+C49)>=0,"additional grams need to be removed", "additional grams need to be added") -> additional grams need to be added
B53: =ABS((C21+D49)/(B64-B63)) -> 0 | C53: =CONCATENATE("Grams need to move from ",IF((C21+D49)<=0,INDEX(A28:A35,B60,1),INDEX(A28:A35,B61,1))," to ",IF((C21+D49)<=0,INDEX(A28:A35,B61,1),INDEX(A28:A35,B60,1))) -> Grams need to move from Sci fwd bottles to Aft
B54: =INDEX(C41:C48,IF(A41,1,IF(A42,2,IF(A43,3,IF(A44,4,IF(A45,5,IF(A46,6,IF(A47,7,"Error"))))))))+(C21+D49)/(INDEX(C28:C35,IF(A48,8,IF(A47,7,IF(A46,6,IF(A45,5,IF(A44,4,IF(A43,3,IF(A42,2,"error"))))))))-INDEX(C28:C35,IF(A41,1,IF(A42,2,IF(A43,3,IF(A44,4,IF(A45,5,IF(A46,6,IF(A47,7,"Error"))))))))) -> 0 | C54: =CONCATENATE("Change ",INDEX(A28:A35,B60,1)," to this:") -> Change Sci fwd bottles to this: | F54: <-- when this change is made, the number below will be affected. It is necessary
B55: =INDEX(C41:C48,IF(A48,8,IF(A47,7,IF(A46,6,IF(A45,5,IF(A44,4,IF(A43,3,IF(A42,2,"error"))))))))-((C21+D49)/(INDEX(C28:C35,IF(A48,8,IF(A47,7,IF(A46,6,IF(A45,5,IF(A44,4,IF(A43,3,IF(A42,2,"error"))))))))-INDEX(C28:C35,IF(A41,1,IF(A42,2,IF(A43,3,IF(A44,4,IF(A45,5,IF(A46,6,IF(A47,7,"Error")))))))))) -> 0 | C55: =CONCATENATE("Change ",INDEX(A28:A35,B61,1)," to this:") -> Change Aft to this: | F55: to record both numbers so they can both be changed to the correct value.
A59: Temporary stuff that is needed because excel limits me to 7 nested functions:
B60: =IF(A41,1,IF(A42,2,IF(A43,3,IF(A44,4,IF(A45,5,IF(A46,6,IF(A47,7,"Error"))))))) -> 3 | C60: row of first spot
B61: =IF(A48,8,IF(A47,7,IF(A46,6,IF(A45,5,IF(A44,4,IF(A43,3,IF(A42,2,"error"))))))) -> 8 | C61: row of second spot
B63: =INDEX(C28:C35,IF(A41,1,IF(A42,2,IF(A43,3,IF(A44,4,IF(A45,5,IF(A46,6,IF(A47,7,"Error")))))))) -> -2.625 | C63: pos of first spot
B64: =INDEX(C28:C35,IF(A48,8,IF(A47,7,IF(A46,6,IF(A45,5,IF(A44,4,IF(A43,3,IF(A42,2,"error")))))))) -> 24.5 | C64: pos of second spot
A66: Instructions:
A67: 1- Put glider in tank and attach scales, recording the point of attachment in scale setup section.
A68: 2- Record readings on scales in cells C5 and C6. If glider is light, temporarily add an external known weight to the centerpoint of the glider. If weight is temporarily added, enter the removal of the weight as an adjustment in cell C39. (If the weight in water of the weight is 500g, removing this weight will be a -500g adjustment, so enter -500 in cell C39)
A69: 3- Looking at cell B46, the necessary weight adjustment to the glider, decide which positions you will be able to add/remove weight from, and enter weight adjustments in cells C35-C42 until no more weight needs to be added or subtracted. Use judgement to determine where to add/subtract weight from. If the front of the glider is heavy, you want to remove weight from the front of the glider.
A70: 4- Only after cell B46 reads zero (no more weight adjustments are needed), determine the exact distribution of weight by putting a "1" in each cell, A35-A42, where the corresponding position in cell B35-B42 is available. For example, if weight needs to be moved forward but the forward bottles are full, enter a "0". If they have room to add weight, enter a "1".
A71: 5- In doing the weight adjustment calculation, the spreadsheet will select the furthest forward and furthest aft positions that are "available" (as indicated in column A), and calculate how much weight needs to be moved between these two positions, which can be seen in cell B47. If the value shown is greater than the amount that can physically be moved, that's okay, change the weight adjustment cells to reflect the amount of weight you can actually move, and change the 1 to a 0 to reflect that the spot is no longer available. For example, if the spreadsheet tells you to move 1500g from sci fwd to sci aft, but you only have 500g in sci fwd, reduce the sci fwd weight adjustment by 500g, increase the sci aft weight adjustment by 500g, and change the 1 to a 0 in the cell corresponding to sci fwd availibility.
A72: 6- Repeat step 5 until no more weight needs to move within the glider (cell B47 will be zero). As you repeat step 5 and change the weight adjustment numbers, you need to ensure that the TOTAL weight adjustment remains at the appropriate value.
A73: 7- Remove glider from tank and make weight adjustments. Put glider back in tank. Clear weight adjustment cells and scale reading cells. Repeat step 2 and check ballasting.
A75: If you want to change anything, the password to unprotect the sheet is "glider"

Sheet G2
D1: Document #: | E1: =Ballast!$H$1 -> 4095-GBPSH
D2: Rev: | E2: =Ballast!$H$2 -> DRAFT C
D3: Date: | E3: =Ballast!$H$3 -> 2012-07-20
D4: ECO #: | E4: =Ballast!$H$4 -> 574
A7: Glider: | B7: =Ballast!C14 -> 275
A8: Date: | B8: =Ballast!C16 -> 2012-07-31
A10: Scale readings and setup:
B11: Fwd Scale reading: | C11: 0 | D11: grams | E11: =IF(C11>5000,"Error: scale reading too high",IF(C11<0,"Error: scale reading should be positive","")) -> 
B12: Aft Scale reading: | C12: 0 | D12: grams | E12: =IF(C12>5000,"Error: scale reading too high",IF(C12<0,"Error: scale reading should be positive","")) -> 
B13: Adjustment from ballasting sheet: | C13: =Ballast!G33 -> 206.7996115 | D13: grams
B14: =IF((C11+C12-C13)>0,"Total weight to remove:","Total weight to add:") -> Total weight to add: | C14: =ABS(C11+C12-C13) -> 206.7996115 | D14: grams
B16: From fwd hull | C16: From center of buoyancy
B17: (inches) | C17: (inches)
A18: Fwd scale position | B18: 1 | C18: =B18-$C$24 -> -22 | E18: =IF(B18<-10,"Error: Check scale position",IF(B18>30, "Error, check scale position","")) -> 
A19: Aft scale position | B19: 49 | C19: =B19-$C$24 -> 26 | E19: =IF(B19<20,"Error: Check scale position",IF(B19>70, "Error, check scale position","")) -> 
B21: Off from center of buoyancy by this much: | C21: =(C11*C18)+(C12*C19) -> 0 | D21: inchgrams
F22: Notes:
A23: Coordinate Setup: | F23: Red numbers indicate measured constants that will affect results.
B24: Center of Buoyancy: | C24: 23 | F24: The reference point everything is measured from is the forward edge of the forward hull.
F25: Coordinates of forward top and bottom bottles was measured with heavy end of bottle forward
A26: Weight Position | B26: Dist from fwd hull | C26: From CoB | F26: Depending on which hole is used to bolt weight to the weight bar, coordinates of sci fwd disc
B27: (inches) | C27: (inches) | F27: and sci aft disc will need to be adjusted.
A28: Forward | B28: 2 | C28: =B28-C$24 -> -21
A29: Nose Weights | B29: 2.125 | C29: -20.875
A30: Sci fwd plates | B30: 19.5 | C30: -3.5
A31: Sci fwd disc(unused) | B31: 9999 | C31: 9976
A32: Center | B32: 23.75 | C32: 0.75
A33: Sci aft disc(unused) | B33: 9999 | C33: 9976
A34: Sci aft plates | B34: 30.5 | C34: 7.5
A35: Aft | B35: 49.5 | C35: 26.5
A37: Weight adjustment section:
A39: Zero if spot unavailable | B39: Position: | C39: Weight adjustment | D39: Center of Mass adjustment | E39: Final
A40: One if spot available | C40: (grams) | D40: (inchgrams) | E40: Weight
A41: 1 | B41: =A28 -> Forward | C41: 0 | D41: =C28*C41 -> 0 | F41: =IF(ABS(C41)>5000,"Error: Weight adjustment too high","") -> 
A42: 0 | B42: Nose Weights | C42: 0 | D42: 0
A43: 1 | B43: Sci fwd plates | C43: 0 | D43: 0
A44: 0 | B44: Sci fwd disc(unused) | C44: 0 | D44: 0
A45: 1 | B45: Center | C45: 0 | D45: 0
A46: 0 | B46: Sci aft disc(unused) | C46: 0 | D46: 0
A47: 1 | B47: Sci aft plates | C47: 0 | D47: 0
A48: 1 | B48: Aft | C48: 0 | D48: 0
C49: =SUM(C41:C48) -> 0 | D49: =SUM(D41:D48) -> 0
A51: Weight adjustment calculation:
B52: =ABS((C11+C12-C13)+C49) -> 206.7996115 | C52: =IF(((C11+C12-C13)+C49)>=0,"additional grams need to be removed", "additional grams need to be added") -> additional grams need to be added
B53: =ABS((C21+D49)/(B64-B63)) -> 0 | C53: =CONCATENATE("Grams need to move from ",IF((C21+D49)<=0,INDEX(A28:A35,B60,1),INDEX(A28:A35,B61,1))," to ",IF((C21+D49)<=0,INDEX(A28:A35,B61,1),INDEX(A28:A35,B60,1))) -> Grams need to move from Forward to Aft
B54: =INDEX(C41:C48,IF(A41,1,IF(A42,2,IF(A43,3,IF(A44,4,IF(A45,5,IF(A46,6,IF(A47,7,"Error"))))))))+(C21+D49)/(INDEX(C28:C35,IF(A48,8,IF(A47,7,IF(A46,6,IF(A45,5,IF(A44,4,IF(A43,3,IF(A42,2,"error"))))))))-INDEX(C28:C35,IF(A41,1,IF(A42,2,IF(A43,3,IF(A44,4,IF(A45,5,IF(A46,6,IF(A47,7,"Error"))))))))) -> 0 | C54: =CONCATENATE("Change ",INDEX(A28:A35,B60,1)," to this:") -> Change Forward to this: | F54: <-- when this change is made, the number below will be affected. It is necessary
B55: =INDEX(C41:C48,IF(A48,8,IF(A47,7,IF(A46,6,IF(A45,5,IF(A44,4,IF(A43,3,IF(A42,2,"error"))))))))-((C21+D49)/(INDEX(C28:C35,IF(A48,8,IF(A47,7,IF(A46,6,IF(A45,5,IF(A44,4,IF(A43,3,IF(A42,2,"error"))))))))-INDEX(C28:C35,IF(A41,1,IF(A42,2,IF(A43,3,IF(A44,4,IF(A45,5,IF(A46,6,IF(A47,7,"Error")))))))))) -> 0 | C55: =CONCATENATE("Change ",INDEX(A28:A35,B61,1)," to this:") -> Change Aft to this: | F55: to record both numbers so they can both be changed to the correct value.
A59: Temporary stuff that is needed because excel limits me to 7 nested functions:
B60: =IF(A41,1,IF(A42,2,IF(A43,3,IF(A44,4,IF(A45,5,IF(A46,6,IF(A47,7,"Error"))))))) -> 1 | C60: row of first spot
B61: =IF(A48,8,IF(A47,7,IF(A46,6,IF(A45,5,IF(A44,4,IF(A43,3,IF(A42,2,"error"))))))) -> 8 | C61: row of second spot
B63: =INDEX(C28:C35,IF(A41,1,IF(A42,2,IF(A43,3,IF(A44,4,IF(A45,5,IF(A46,6,IF(A47,7,"Error")))))))) -> -21 | C63: pos of first spot
B64: =INDEX(C28:C35,IF(A48,8,IF(A47,7,IF(A46,6,IF(A45,5,IF(A44,4,IF(A43,3,IF(A42,2,"error")))))))) -> 26.5 | C64: pos of second spot
A66: Instructions:
A67: 1- Put glider in tank and attach scales, recording the point of attachment in scale setup section.
A68: 2- Record readings on scales in cells C5 and C6. If glider is light, temporarily add an external known weight to the centerpoint of the glider. If weight is temporarily added, enter the removal of the weight as an adjustment in cell C39. (If the weight in water of the weight is 500g, removing this weight will be a -500g adjustment, so enter -500 in cell C39)
A69: 3- Looking at cell B46, the necessary weight adjustment to the glider, decide which positions you will be able to add/remove weight from, and enter weight adjustments in cells C35-C42 until no more weight needs to be added or subtracted. Use judgement to determine where to add/subtract weight from. If the front of the glider is heavy, you want to remove weight from the front of the glider.
A70: 4- Only after cell B46 reads zero (no more weight adjustments are needed), determine the exact distribution of weight by putting a "1" in each cell, A35-A42, where the corresponding position in cell B35-B42 is available. For example, if weight needs to be moved forward but the forward bottles are full, enter a "0". If they have room to add weight, enter a "1".
A71: 5- In doing the weight adjustment calculation, the spreadsheet will select the furthest forward and furthest aft positions that are "available" (as indicated in column A), and calculate how much weight needs to be moved between these two positions, which can be seen in cell B47. If the value shown is greater than the amount that can physically be moved, that's okay, change the weight adjustment cells to reflect the amount of weight you can actually move, and change the 1 to a 0 to reflect that the spot is no longer available. For example, if the spreadsheet tells you to move 1500g from sci fwd to sci aft, but you only have 500g in sci fwd, reduce the sci fwd weight adjustment by 500g, increase the sci aft weight adjustment by 500g, and change the 1 to a 0 in the cell corresponding to sci fwd availibility.
A72: 6- Repeat step 5 until no more weight needs to move within the glider (cell B47 will be zero). As you repeat step 5 and change the weight adjustment numbers, you need to ensure that the TOTAL weight adjustment remains at the appropriate value.
A73: 7- Remove glider from tank and make weight adjustments. Put glider back in tank. Clear weight adjustment cells and scale reading cells. Repeat step 2 and check ballasting.
A75: If you want to change anything, the password to unprotect the sheet is "glider"

Sheet Worksheet
E1: Document #: | F1: =Ballast!$H$1 -> 4095-GBPSH
E2: Rev: | F2: =Ballast!$H$2 -> DRAFT C
E3: Date: | F3: =Ballast!$H$3 -> 2012-07-20
E4: ECO #: | F4: =Ballast!$H$4 -> 574
A7: Glider Ballast Worksheet
A9: Ballasting Technician: | B9: =Ballast!$C$15 -> 0
A10: Date: | B10: =Ballast!$C$16 -> 2012-07-31
A11: Glider Displacement (L): | B11: =Ballast!C23 -> 56.29954273
A12: H-Moment (mm): | B12: =Ballast!C83 -> 
A14: TANK WATER: | E14: TARGET WATER
A15: Temperature (°C): | B15: =Ballast!C26 -> 29.8 | E15: Temperature (°C): | F15: =Ballast!E26 -> 24
A16: Conductivity (S/m): | B16: =Ballast!C28 -> 0 | E16: Conductivity (S/m): | F16: =Ballast!E28 -> 0
A17: Salinity (psu): | B17: =Ballast!C31 -> 28.6 | E17: Salinity (psu): | F17: =Ballast!E31 -> 31.5
A18: Density (g/L°C): | B18: =Ballast!C32 -> 1017.005807 | E18: Density (g/L°C): | F18: =Ballast!E32 -> 1020.995825
A20: Pie Weight Locations
A38: Pie weights can be removed or shifted around to indicate exact location of placement. The quantity can also be changed to represent stacked pie weights.
A40: Final Weight Configuration As Sent to Customer
A42: Forward | B42: Weight (g) | C42: Payload | D42: Weight (g) | E42: Aft | F42: Weight (g)
A43: Port Bottle | C43: Top FWD | E43: Aft Bottle
A44: STBD Bottle | C44: Bottom FWD
A45: Bottom Bottle | C45: Top AFT
C46: Bottom AFT
C47: Weight Bar

Sheet Constants (hidden)
B2: Glider Types | C2: Glider Displacements | D2: Extended Bay Types | E2: Battery Types | F2: Aft Configurations | G2: Nose Configurations | H2: Drive Weight Type
B3: G1 Shallow (200m) | C3: =52-E14 -> 42.21345727 | D3: Extended Science Bay | E3: Alkaline | F3: 9 pack aft | G3: 0 pack nose | H3: Stainless Steel
B4: G1 Deep (1000m) | C4: =55.2-E12 -> 46.17253199 | D4: Extended Energy Bay | E4: Lithium | F4: 10 pack aft | G4: 1 pack nose | H4: Lead
B5: G2 Shallow (200m) | C5: =56.3-$E$12 -> 47.27253199 | D5: DVL Science Bay | F5: 11 pack aft | G5: 2 pack nose
B6: G2 Deep (1000m) | C6: =56.3-$E$12 -> 47.27253199 | F6: 12 pack aft
F7: Lithium aft pack
C10: length of add'l bay (inches) | D10: Volume of Additional Bay | F10: Installed
D11: in^3 | E11: L
B12: sci (G1 shallow) | C12: 10 | D12: =C12*(8.375/2)^2*PI() -> 550.8831805 | E12: =D12/61.023 -> 9.027468013 | F12: FALSE
B13: sci (G1 shallow) | C13: 10 | D13: =C13*(8.375/2)^2*PI() -> 550.8831805 | E13: 9.027468013 | F13: FALSE
B14: sci (G1 deep & G2 shallow) | C14: 10 | D14: =C14*(8.72/2)^2*PI() -> 597.2041971 | E14: 9.786542731 | F14: FALSE
B15: sci (G1 deep & G2 shallow) | C15: 10 | D15: 597.2041971 | E15: 9.786542731 | F15: TRUE
B16: en | C16: 14.85 | D16: 886.8482327 | E16: 14.53301596 | F16: FALSE
B17: en | C17: 14.85 | D17: 886.8482327 | E17: 14.53301596 | F17: FALSE
B18: dvl | C18: 5.75 | D18: 343.3924133 | E18: 5.62726207 | F18: FALSE
B19: dvl | C19: 5.75 | D19: 343.3924133 | E19: 5.62726207 | F19: FALSE
